bitfinex-derivatives/quotes_ETHF0:USTF0_20240826
["timestamp","ask_amount","ask_price","bid_price","bid_amount"]
[1724712189352,5.39346,2686.6,2686.5,0.00402312]
[1724712189552,5.39346,2686.6,2686.5,0.36172312]
[1724712189755,1.30236,2686.6,2686.5,0.36172312]
[1724712190952,2.64236,2686.6,2686.5,0.36172312]
[1724712191954,0.37223,2685.7,2685.4,0.97515826]
[1724712192149,0.37223,2685.7,2685.6,0.3594]
[1724712192949,0.37223,2685.7,2685.6,0.36234008]
[1724712192950,0.3755564,2685.7,2685.6,0.36234008]
[1724712193656,0.3755564,2685.7,2685.6,1.70234008]
[1724712194661,0.37226,2685.5,2685.4,0.00558025]
[1724712194963,1.71226,2685.5,2685.4,0.00558025]
[1724712195152,6.36691,2685.5,2685.4,0.00558025]
[1724712195465,6.36691,2685.5,2684.9,0.3813]
[1724712195466,0.37232,2685.0,2684.9,0.3813]
[1724712195760,0.37232,2685.0,2684.9,0.38496527]
[1724712195761,1.71232,2685.0,2684.9,0.38496527]
[1724712196061,0.3549,2685.4,2684.9,1.72496527]
[1724712196261,1.34997865,2685.6,2685.3,1.34]
[1724712196262,0.3771,2685.6,2685.3,1.34]
[1724712196464,0.3771,2685.6,2685.4,1.7173]
[1724712196655,0.3771,2685.6,2685.4,0.3773]
[1724712196656,1.7171,2685.6,2685.4,0.3773]
[1724712197158,0.3771,2685.6,2685.4,1.7173]
[1724712197451,3.2111264,2685.7,2685.5,1.34]
[1724712197654,3.5833564,2685.7,2685.5,1.7051]
[1724712198064,4.9233564,2685.7,2685.5,0.3651]
[1724712198457,1.34,2685.6,2685.5,0.3651]
[1724712200165,3.5833564,2685.7,2685.5,0.3651]
[1724712200867,0.37224,2685.6,2685.5,0.3651]
[1724712202367,0.37224,2685.6,2685.4,0.3773]
[1724712203369,0.37226,2685.5,2685.4,0.3773]
[1724712203566,0.37226,2685.5,2684.9,0.00924552]
[1724712203567,0.93068,2685.4,2684.9,0.00924552]
[1724712203771,3.59232,2685.0,2684.9,0.00924552]
[1724712204563,0.3831,2685.3,2684.9,0.38157552]
[1724712204770,0.3831,2685.3,2684.9,0.00924552]
[1724712204967,0.3723,2685.2,2684.9,0.00924552]
[1724712205165,0.3831,2685.3,2684.9,0.00924552]
[1724712205166,0.37231,2685.1,2684.9,0.00924552]
[1724712205363,0.3831,2685.3,2684.9,0.00924552]
[1724712206163,0.37231,2685.1,2684.9,0.00924552]
[1724712206763,0.37232,2685.0,2684.9,0.00924552]
[1724712207373,3.59232,2685.0,2684.9,0.00924552]
[1724712208171,0.37232,2685.0,2684.9,0.00924552]
[1724712209771,3.59232,2685.0,2684.9,0.00924552]
[1724712210280,3.22,2685.0,2684.9,0.00924552]
[1724712210470,0.37232,2685.1,2684.9,0.00924552]
[1724712211173,0.3724,2684.5,2683.9,0.97515826]
[1724712211373,3.22,2684.4,2684.2,0.37243]
[1724712211572,3.59241,2684.4,2684.2,0.37243]
[1724712211771,3.59241,2684.4,2684.1,0.72814]
[1724712212075,3.59241,2684.4,2684.2,0.37243]
[1724712215988,0.00558025,2684.5,2684.4,0.37241]
[1724712216485,0.00558025,2684.5,2684.4,4.46061]
[1724712216971,0.37797025,2684.5,2684.4,0.3634]
[1724712218772,0.37797025,2684.5,2684.4,4.0882]
[1724712219581,0.37797025,2684.5,2684.4,0.3634]
[1724712220379,0.37241,2684.4,2684.2,0.37243]
[1724712220680,0.3651,2684.3,2684.2,0.37243]
[1724712220876,0.75541,2684.4,2684.2,0.37243]
[1724712221069,0.75541,2684.4,2684.2,0.75713]
[1724712221378,0.383,2684.4,2684.3,0.37242]
[1724712221872,0.383,2684.4,2684.2,0.3847]
[1724712221873,0.75541,2684.4,2684.2,0.75713]
[1724712222877,0.37242,2684.3,2684.2,0.3847]
[1724712223881,0.37242,2684.3,2684.2,0.75714]
[1724712224779,0.75541,2684.4,2684.2,0.75714]
[1724712225374,0.75541,2684.4,2684.3,0.37242]
[1724712225784,0.75541,2684.4,2684.2,0.75713]
[1724712226576,0.37242,2684.3,2684.2,0.75713]
[1724712226883,0.75932,2684.3,2684.2,0.75713]
[1724712228786,0.3869,2684.3,2684.1,0.37636329]
[1724712228986,0.3869,2684.3,2684.1,0.74866329]
[1724712229287,0.75932,2684.3,2684.2,0.37244]
[1724712230974,0.3869,2684.3,2684.2,0.37244]
[1724712231979,1.7269,2684.3,2684.2,0.37244]
[1724712233984,1.34,2684.3,2684.2,0.37244]
[1724712234285,1.34,2684.3,2684.2,0.75034]
[1724712236989,3.2078,2684.4,2684.3,1.30348]
[1724712237290,4.5478,2684.4,2684.3,4.09802]
[1724712243386,3.2078,2684.4,2684.3,4.09802]
[1724712243586,0.37798025,2684.5,2684.4,0.37241]
[1724712243994,0.37798025,2684.5,2684.4,4.45691]
[1724712244396,0.37798025,2684.5,2684.4,0.73211]
[1724712244991,0.37798025,2684.5,2684.4,0.3597]
[1724712246085,0.37798025,2684.5,2684.4,0.73211]
[1724712246303,0.37798025,2684.5,2684.4,0.3597]
[1724712246791,0.37798025,2684.5,2684.4,0.73211]
[1724712246991,0.00558025,2684.5,2684.4,0.73211]
[1724712247603,4.55301865,2684.9,2684.7,0.37235]
[1724712247788,4.55301865,2684.9,2684.8,1.09875]
[1724712247994,3.58014,2684.9,2684.8,1.09875]
[1724712248504,4.55301865,2684.9,2684.8,1.09875]
[1724712248900,3.58014,2684.9,2684.8,1.09875]
[1724712249203,4.55301865,2684.9,2684.8,1.09875]
[1724712249796,5.89301865,2684.9,2684.8,0.7264]
[1724712250708,4.92014,2684.9,2684.8,0.7264]
[1724712251005,5.89486985,2684.9,2684.8,0.7264]
[1724712251308,4.92014,2684.9,2684.8,0.7264]
[1724712251491,6.38173566,2684.9,2684.8,0.7264]
[1724712251697,4.92014,2684.9,2684.8,0.7264]
[1724712251899,4.92014,2684.9,2684.8,1.09875]
[1724712252094,6.38173566,2684.9,2684.8,0.7264]
[1724712252806,3.2078,2684.9,2684.8,3.9357439]
[1724712252999,3.2078,2684.9,2684.8,7.66146123]
[1724712253199,3.2078,2684.9,2684.8,8.14743262]
[1724712255000,3.58014,2684.9,2684.8,8.14743262]
[1724712255213,3.2078,2684.9,2684.8,8.14743262]
[1724712255896,3.58014,2684.9,2684.8,8.14743262]
[1724712256095,3.58014,2684.9,2684.8,6.68581593]
[1724712256302,3.2078,2684.9,2684.8,6.68581593]
[1724712256502,4.92014,2684.9,2684.8,7.66117277]
[1724712256899,4.5478,2684.9,2684.8,7.66117277]
[1724712258605,4.5478,2684.9,2684.8,5.79890684]
[1724712258797,4.5478,2684.9,2684.8,7.66112314]
[1724712259004,4.5478,2684.9,2684.8,4.82355]
[1724712259407,4.5478,2684.9,2684.8,1.09875]
[1724712260802,3.2078,2684.9,2684.8,1.09875]
[1724712261512,3.2078,2684.9,2684.8,2.07410684]
[1724712261904,3.2078,2684.9,2684.8,8.02578158]
[1724712262208,0.36008025,2685.1,2685.0,0.37232]
[1724712262810,0.36008025,2685.1,2685.0,1.34719197]
[1724712263002,1.70008025,2685.1,2685.0,0.37232]
[1724712264313,5.42408025,2685.1,2684.8,1.71412197]
[1724712264518,1.34,2684.9,2684.8,0.37235]
[1724712266012,1.71234,2684.9,2684.8,0.37235]
[1724712267705,1.34,2684.9,2684.8,0.37235]
[1724712268119,1.7067,2684.9,2684.8,0.37235]
[1724712268306,2.0912,2684.9,2684.8,0.37235]
[1724712269817,2.46354,2684.9,2684.8,0.37235]
[1724712271407,0.37237,2684.7,2684.6,0.97487197]
[1724712271606,0.37238,2684.6,2684.4,1.34727197]
[1724712271809,1.7294,2684.5,2684.4,0.3724]
[1724712273118,2.48419,2684.6,2684.5,0.37239]
[1724712273416,2.1118,2684.6,2684.5,0.37239]
[1724712273615,2.48418,2684.6,2684.5,0.37239]
[1724712273817,2.1118,2684.6,2684.5,0.37239]
[1724712275217,2.48418,2684.6,2684.5,0.37239]
[1724712276912,2.48418,2684.6,2684.4,0.3724]
[1724712278423,0.37239,2684.5,2684.4,0.3724]
[1724712279020,2.48419,2684.6,2684.4,0.37241]
[1724712279422,2.48419,2684.6,2684.5,0.37239]
[1724712280216,2.48419,2684.6,2684.4,0.3724]
[1724712280416,2.1118,2684.6,2684.1,0.80164049]
[1724712280625,2.1118,2684.6,2684.5,0.37239]
[1724712282009,2.48418,2684.6,2684.5,0.37239]
[1724712285023,0.3884,2684.6,2684.5,2.68763415]
[1724712285225,0.3884,2684.6,2684.5,7.67746033]
[1724712285818,0.3884,2684.6,2684.5,3.06563177]
[1724712286026,0.3884,2684.6,2684.5,1.72563177]
[1724712289931,0.3884,2684.6,2684.5,2.61272629]
[1724712290327,0.3884,2684.6,2684.5,1.72584733]
[1724712292026,0.3884,2684.6,2684.5,3.58833367]
[1724712292620,0.3884,2684.6,2684.5,4.07564257]
[1724712292824,0.3884,2684.6,2684.5,2.61277634]
[1724712293027,0.3884,2684.6,2684.5,4.07564257]
[1724712293430,0.76078,2684.6,2684.5,0.97582137]
[1724712293631,1.73496143,2684.6,2684.5,0.97582137]
[1724712293825,0.76078,2684.6,2684.5,4.17828698]
[1724712294026,0.76078,2684.6,2684.5,0.97582137]
[1724712294225,1.73496143,2684.6,2684.5,0.97582137]
[1724712294425,0.76078,2684.6,2684.5,0.97582137]
[1724712294630,1.73496143,2684.6,2684.5,0.97582137]
[1724712295231,1.73496143,2684.6,2684.5,1.34821137]
[1724712295835,0.3884,2684.6,2684.5,1.34821137]
[1724712296524,0.97418143,2684.7,2684.6,0.37238]
[1724712296729,0.37236,2684.8,2684.7,0.37237]
[1724712297130,7.10862215,2684.9,2684.7,0.37237]
[1724712297326,1.26368223,2685.0,2684.8,5.43715]
[1724712297532,0.00558025,2685.1,2685.0,1.30314]
[1724712297728,0.0033264,2685.7,2685.6,0.37224]
[1724712297926,0.0033264,2685.7,2685.6,2.41827453]
[1724712298130,0.0033264,2685.7,2685.6,13.81740721]
[1724712298341,0.0033264,2685.7,2685.6,10.09441898]
[1724712298644,0.0033264,2685.7,2685.6,11.37189444]
[1724712299237,0.0033264,2685.7,2685.6,9.91049399]
[1724712299436,0.0033264,2685.7,2685.6,11.37096439]
[1724712300735,0.0033264,2685.7,2685.6,11.37036103]
[1724712300939,1.7155564,2685.7,2685.6,0.97360985]
[1724712301239,1.7155564,2685.7,2685.4,0.00558025]
[1724712301240,0.37226,2685.5,2685.4,0.00558025]
[1724712301543,0.37226,2685.5,2685.0,0.37232]
[1724712301544,0.37229,2685.3,2685.0,0.37232]
[1724712301839,1.34,2685.1,2685.0,0.37232]
[1724712302034,0.36,2685.2,2685.1,0.37231]
[1724712302224,1.34,2685.3,2685.0,0.37232]
[1724712302425,1.34,2685.3,2685.0,4.54455297]
[1724712302640,1.71228,2685.3,2685.0,4.91687297]
[1724712302835,1.71228,2685.3,2685.0,0.74092]
[1724712303237,1.34,2685.3,2685.1,0.37231]
[1724712303641,1.71228,2685.3,2685.0,0.74092]
[1724712304032,1.34,2685.3,2685.0,0.3686]
[1724712304345,0.73228,2685.4,2685.0,0.74091]
[1724712304642,0.3814,2685.2,2685.0,0.74091]
[1724712305042,0.3814,2685.2,2685.1,0.37231]
[1724712305340,3.2078,2685.5,2685.1,5.11484813]
[1724712305650,4.33256,2685.5,2685.2,0.37229]
[1724712305838,3.9603,2685.5,2685.3,0.37228]
[1724712306339,3.9603,2685.5,2685.1,5.11484813]
[1724712306340,3.2078,2685.5,2685.4,0.37227]
[1724712306542,3.2078,2685.5,2685.4,8.41532513]
[1724712306733,3.2078,2685.5,2685.3,0.37228]
[1724712307037,0.3633,2685.4,2685.3,0.37228]
[1724712310243,0.3755564,2685.7,2685.6,0.37224]
[1724712310244,0.0033264,2685.7,2685.6,0.37224]
[1724712310441,0.0033264,2685.7,2685.6,3.59224]
[1724712310747,0.0033264,2685.7,2685.6,9.37479489]
[1724712311047,0.0033264,2685.7,2685.6,11.23618109]
[1724712311541,0.0033264,2685.7,2685.6,9.37476973]
[1724712312343,0.37225,2685.6,2685.4,0.9725357]
[1724712312548,0.37225,2685.6,2685.2,1.8296704]
[1724712312549,1.095,2685.5,2685.2,0.74149]
[1724712312739,1.095,2685.5,2685.3,0.37228]
[1724712313348,1.095,2685.5,2685.4,0.37227]
[1724712314037,1.095,2685.5,2685.3,0.37228]
[1724712314341,0.3752,2685.5,2685.4,0.37227]
[1724712314643,0.0033264,2685.7,2685.4,0.37227]
[1724712314947,0.0033264,2685.7,2685.5,0.37226]
[1724712315544,0.0033264,2685.7,2685.4,0.74666]
[1724712315936,0.0033264,2685.7,2685.2,0.3692]
[1724712316138,0.0033264,2685.7,2685.3,0.37227]
[1724712316334,0.0033264,2685.7,2685.3,3.95937236]
[1724712316649,0.0033264,2685.7,2685.5,0.37225]
[1724712318148,0.0033264,2685.7,2685.4,0.37226]
[1724712318545,0.3755664,2685.7,2685.3,4.33165236]
[1724712318741,0.37225,2685.6,2685.3,0.37228]
[1724712319051,0.3625,2685.5,2685.3,0.37228]
[1724712319452,0.3625,2685.5,2685.4,0.37227]
[1724712321257,0.0033264,2685.7,2685.2,0.7436]
[1724712321457,0.0033264,2685.7,2685.6,6.80004]
[1724712321755,0.0033264,2685.7,2685.6,12.2102757]
[1724712322145,0.0033264,2685.7,2685.6,21.37148214]
[1724712322345,0.0033264,2685.7,2685.6,24.65127889]
[1724712323359,0.0033264,2685.7,2685.6,23.19080849]
[1724712323558,0.0033264,2685.7,2685.6,24.16170953]
[1724712323855,0.0033264,2685.7,2685.6,24.16171964]
[1724712324054,0.0033264,2685.7,2685.6,23.19080849]
[1724712324350,0.0033264,2685.7,2685.6,24.65127889]
[1724712324659,0.00558025,2685.9,2685.8,0.37221]
[1724712325048,0.00558025,2685.9,2685.8,8.18373013]
[1724712325552,0.01003198,2685.9,2685.8,9.15441866]
[1724712326251,0.01003198,2685.9,2685.8,14.15441866]
[1724712326652,1.98e-06,2685.9,2685.8,15.08495866]
[1724712326957,11.078,2687.1,2685.8,14.6725808]
[1724712327156,0.3724,2687.0,2686.9,3.22]
[1724712327453,0.3724,2687.0,2686.7,0.37208]
[1724712327955,0.3724,2687.0,2686.8,4.06940555]
[1724712327956,0.37634221,2687.0,2686.8,4.06940555]
[1724712328553,0.37634221,2687.0,2686.7,0.00413032]
[1724712329147,0.37634221,2687.0,2686.7,0.37621032]
[1724712330755,0.37634221,2687.0,2686.7,0.00413032]
[1724712331058,3.7216,2686.9,2686.7,0.00413032]
[1724712331754,3.7216,2686.8,2686.7,0.00413032]
[1724712331959,3.7216,2686.9,2686.7,0.00413032]
[1724712332460,0.37634221,2687.0,2686.7,0.00413032]
[1724712332653,4.09794221,2687.0,2686.7,0.00413032]
[1724712335365,0.37634221,2687.0,2686.7,0.00413032]
[1724712335955,0.37634221,2687.0,2686.9,3.22]
[1724712336151,0.37634221,2687.0,2686.8,0.37207]
[1724712337065,0.37634221,2687.0,2686.7,0.37621032]
[1724712337656,0.37634221,2687.0,2686.7,0.00413032]
[1724712338059,0.37634221,2687.0,2686.7,0.37622032]
[1724712338759,0.37634221,2687.0,2686.7,0.00413032]
[1724712338955,0.37634221,2687.0,2686.7,0.37622032]
[1724712339354,0.37634221,2687.0,2686.9,3.59206]
[1724712339867,4.09794221,2687.0,2686.9,7.12696263]
[1724712340067,4.09794221,2687.0,2686.8,0.75277]
[1724712340364,0.37634221,2687.0,2686.7,0.00413032]
[1724712341565,0.37634221,2687.0,2686.7,0.37621032]
[1724712343065,0.37634221,2687.0,2686.7,0.00413032]
[1724712343280,0.37634221,2687.0,2686.7,0.37622032]
[1724712344780,0.00394221,2687.0,2686.9,3.59206]
[1724712344974,0.00394221,2687.0,2686.9,7.68176]
[1724712345185,0.00394221,2687.0,2686.9,11.76345657]
[1724712346180,0.00013904,2687.0,2686.9,20.33405657]
[1724712346485,0.00013904,2687.0,2686.9,20.51741614]
[1724712347674,0.00013904,2687.0,2686.9,21.44757614]
[1724712348579,0.00013904,2687.0,2686.9,21.88502168]
[1724712349382,0.7643,2687.8,2687.0,4.65173]
[1724712349690,0.7643,2687.8,2687.7,3.59195]
[1724712350374,0.76829112,2687.8,2687.7,3.59195]
[1724712351178,0.76829112,2687.8,2687.5,3.22]
[1724712351383,0.76829112,2687.8,2687.7,0.37195]
[1724712352184,0.76829112,2687.8,2687.5,3.22]
[1724712352383,0.76829112,2687.8,2687.7,0.37195]
[1724712353877,0.00399112,2687.8,2687.7,3.59195]
[1724712354191,0.00399112,2687.8,2687.7,11.97751229]
[1724712357386,0.35708025,2688.0,2687.7,14.81336229]
[1724712357587,0.00558025,2688.0,2687.9,0.37192]
[1724712358387,0.00982989,2688.0,2687.9,0.37192]
[1724712359284,0.00982989,2688.0,2687.9,8.20860858]
[1724712361388,0.38,2688.4,2688.3,0.37187]
[1724712361589,0.38,2688.4,2688.3,3.22]
[1724712361892,0.38,2688.4,2688.1,3.59189]
[1724712362097,0.38,2688.4,2688.1,3.22]
[1724712362285,0.75455118,2688.4,2688.1,3.22]
[1724712362486,0.75455118,2688.4,2688.0,0.36418025]
[1724712363596,0.75455118,2688.4,2688.0,0.73608025]
[1724712363798,0.38269118,2688.4,2688.0,0.73608025]
[1724712363998,0.38269118,2688.4,2688.0,0.36418025]
[1724712364186,0.38269118,2688.4,2688.0,0.73608025]
[1724712364600,0.38269118,2688.4,2688.3,3.22]
[1724712367801,0.38269118,2688.4,2688.2,0.79851898]
[1724712368096,0.38269118,2688.4,2688.1,3.22]
[1724712368097,0.37187,2688.3,2688.1,3.22]
[1724712368297,0.37187,2688.3,2688.0,0.00558025]
[1724712368594,0.3705,2688.2,2688.0,0.00558025]
[1724712368797,0.37,2688.1,2688.0,0.37749025]
[1724712369097,0.37,2688.1,2688.0,3.59749025]
[1724712371509,0.37,2688.1,2688.0,3.22558025]
[1724712371804,0.37,2688.1,2688.0,0.37749025]
[1724712373099,0.3705,2688.2,2688.1,0.37189]
[1724712373302,0.75699118,2688.4,2688.2,0.37187]
[1724712373497,0.3552,2688.3,2688.2,0.37187]
[1724712374093,4.0752,2688.3,2688.2,0.37188]
[1724712374403,4.0752,2688.3,2688.1,0.37189]
[1724712374598,0.3552,2688.3,2688.2,0.37188]
[1724712375706,0.3552,2688.3,2688.1,4.29105112]
[1724712375900,0.75699118,2688.4,2688.1,3.91916112]
[1724712376097,1.14299118,2688.4,2688.3,3.22]
[1724712376301,1.14299118,2688.4,2688.2,0.72557]
[1724712379303,1.14299118,2688.4,2688.2,0.3537]
[1724712379607,1.14299118,2688.4,2688.1,0.37189]
[1724712379908,4.72265118,2688.4,2688.0,0.00558025]
[1724712380208,0.37187,2688.3,2688.0,0.00558025]
[1724712380399,0.37189,2688.1,2688.0,0.00558025]
[1724712380797,9.09189,2688.1,2688.0,0.00558025]
[1724712380996,9.09189,2688.1,2687.5,3.2078]
[1724712380997,0.37196,2687.7,2687.5,3.2078]
[1724712381203,4.4602,2687.6,2687.2,3.22]
[1724712381405,0.372,2687.4,2686.7,0.00413032]
[1724712381701,3.2078,2687.4,2686.7,0.00413032]
[1724712381904,0.37203,2687.2,2686.7,0.00413032]
[1724712382099,0.37203,2687.2,2686.8,0.00558025]
[1724712382505,3.7216,2687.2,2686.8,0.00558025]
[1724712382703,0.3602,2687.1,2686.8,0.00558025]
[1724712383211,4.0818,2687.1,2686.8,0.00558025]
[1724712384204,0.3888,2687.0,2686.8,0.00558025]
[1724712384400,0.3888,2687.0,2686.8,0.37765025]
[1724712384600,3.2078,2687.4,2686.8,0.00558025]
[1724712384803,0.3815,2687.3,2686.8,0.00558025]
[1724712385106,0.3815,2687.3,2686.9,0.37205]
[1724712386105,0.75351,2687.3,2686.8,0.37765025]
[1724712386501,0.3815,2687.3,2686.9,0.37206]
[1724712387011,0.3815,2687.3,2687.0,0.37205]
[1724712387408,0.3815,2687.3,2687.1,0.37203]
[1724712387808,4.1031,2687.3,2687.1,0.37203]
[1724712390012,4.1031,2687.3,2687.2,0.37202]
[1724712390201,0.3815,2687.3,2687.2,0.37202]
[1724712390406,4.1031,2687.3,2687.2,0.37202]
[1724712390815,0.3815,2687.3,2687.2,0.37202]
[1724712391919,0.3815,2687.3,2687.2,3.59202]
[1724712393207,0.75247,2687.6,2687.3,0.37199]
[1724712393409,0.3716,2687.5,2687.3,0.37199]
[1724712394016,0.74358,2687.5,2687.3,0.37199]
[1724712396713,0.37199,2687.4,2687.3,0.37199]
[1724712397319,0.74359,2687.5,2687.3,0.37199]
[1724712397611,0.37199,2687.4,2687.3,0.37199]
[1724712397817,0.74359,2687.5,2687.3,0.37199]
[1724712398509,0.37199,2687.4,2687.3,0.37199]
[1724712398709,0.74359,2687.5,2687.3,0.37199]
[1724712399107,0.3716,2687.5,2687.4,0.37199]
[1724712399322,0.74358,2687.5,2687.4,0.37199]
[1724712399819,0.3716,2687.5,2687.4,0.37199]
[1724712400324,0.74358,2687.5,2687.4,0.37199]
[1724712400624,0.3716,2687.5,2687.4,0.37199]
[1724712401117,0.74358,2687.5,2687.4,0.37199]
[1724712401322,0.74358,2687.5,2687.2,3.22]
[1724712401816,0.74358,2687.5,2687.3,0.372]
[1724712402812,0.74358,2687.5,2687.4,0.37199]
[1724712403213,0.74358,2687.5,2687.3,0.372]
[1724712403620,0.74358,2687.5,2687.4,0.37199]
[1724712404616,0.3716,2687.5,2687.4,0.37199]
[1724712406018,0.74358,2687.5,2687.4,0.37199]
[1724712409117,0.3716,2687.5,2687.4,0.37199]
[1724712409319,0.74358,2687.5,2687.4,0.37199]
[1724712410722,0.3716,2687.5,2687.4,0.37199]
[1724712411623,0.74358,2687.5,2687.4,0.37199]
[1724712415128,0.37199,2687.4,2687.3,0.74769]
[1724712415318,0.74359,2687.5,2687.4,0.37199]
[1724712417927,0.3716,2687.5,2687.4,0.37199]
[1724712418729,0.74358,2687.5,2687.4,0.37199]
[1724712420116,0.74358,2687.5,2687.3,0.7477]
[1724712420117,0.37199,2687.4,2687.3,0.7477]
[1724712420320,0.37199,2687.4,2687.3,0.372]
[1724712420516,0.72669,2687.4,2687.3,0.372]
[1724712420816,0.3547,2687.4,2687.3,0.372]
[1724712423123,0.72669,2687.4,2687.3,0.372]
[1724712423632,0.3547,2687.4,2687.3,0.372]
[1724712424219,0.72669,2687.4,2687.3,1.34052451]
[1724712424424,0.72669,2687.4,2687.3,0.372]
[1724712425231,0.72669,2687.4,2687.3,0.96852451]
[1724712425420,5.9803329,2687.4,2687.1,2.4245561]
[1724712425619,1.35977159,2687.3,2687.1,0.96852451]
[1724712425829,0.37202,2687.2,2687.1,0.96852451]
[1724712426232,4.09362,2687.2,2687.1,1.86075187]
[1724712426434,4.09362,2687.2,2687.1,3.68881346]
[1724712426640,3.7216,2687.2,2687.1,3.68881346]
[1724712426933,1.35977159,2687.3,2687.1,3.68881346]
[1724712427126,1.73178159,2687.3,2687.2,2.83584746]
[1724712427527,5.45338159,2687.3,2687.2,2.83584746]
[1724712427926,4.48081,2687.3,2687.2,2.83584746]
[1724712428128,5.45338159,2687.3,2687.2,1.86075187]
[1724712428328,5.45338159,2687.3,2687.2,2.83601732]
[1724712428528,5.45338159,2687.3,2687.2,1.86075187]
[1724712428729,5.45338159,2687.3,2687.2,2.83601274]
[1724712429129,5.45338159,2687.3,2687.2,1.86075187]
[1724712429334,1.73178159,2687.3,2687.2,3.31678346]
[1724712429538,1.73178159,2687.3,2687.2,3.68880346]
[1724712429935,0.75921,2687.3,2687.2,3.68880346]
[1724712430433,1.73178159,2687.3,2687.2,3.68880346]
[1724712430939,0.75921,2687.3,2687.2,3.68859754]
[1724712431129,0.37201,2687.3,2687.2,2.23256595]
[1724712431534,1.34458159,2687.3,2687.2,2.23256595]
[1724712431739,0.97257159,2687.3,2687.2,3.69587544]
[1724712432034,0.37201,2687.3,2687.2,2.23256595]
[1724712432430,1.34458159,2687.3,2687.2,2.23256595]
[1724712432630,0.37201,2687.3,2687.2,2.23256595]
[1724712433032,1.69927159,2687.4,2687.2,2.23256595]
[1724712433228,0.7267,2687.4,2687.3,3.32397131]
[1724712433531,0.7267,2687.4,2687.3,3.69598131]
[1724712433730,4.4475,2687.4,2687.3,3.32397131]
[1724712433931,5.42045693,2687.4,2687.3,3.32397131]
[1724712434131,4.4475,2687.4,2687.3,3.32397131]
[1724712435239,5.89847084,2687.4,2687.3,3.69598131]
[1724712435833,5.89847084,2687.4,2687.3,3.69601487]
[1724712438047,5.89847084,2687.4,2687.3,3.32400487]
[1724712438338,5.7875,2687.4,2687.3,0.97590273]
[1724712439043,7.73586287,2687.4,2687.3,0.97590273]
[1724712439336,5.7875,2687.4,2687.3,0.97590273]
[1724712439540,0.37201,2687.3,2687.2,1.34792273]
[1724712439732,0.37201,2687.3,2687.2,3.20861727]
[1724712439733,1.8315975,2687.3,2687.2,3.20861727]
[1724712440443,1.8315975,2687.3,2687.2,3.2086099]
[1724712441334,0.7267,2687.4,2687.3,0.37201]
[1724712441531,2.18664417,2687.4,2687.3,3.69600458]
[1724712442544,2.18664417,2687.4,2687.3,1.86056922]
[1724712442746,2.18664417,2687.4,2687.3,3.69600458]
[1724712442933,2.18664417,2687.4,2687.3,3.69596877]
[1724712443340,0.7267,2687.4,2687.3,3.69596877]
[1724712443530,2.18664417,2687.4,2687.3,3.69596877]
[1724712444037,2.18664417,2687.4,2687.3,3.32395877]
[1724712444452,2.18664417,2687.4,2687.3,3.69596877]
[1724712444638,0.7267,2687.4,2687.3,3.32395877]
[1724712445039,2.18664417,2687.4,2687.3,3.69596877]
[1724712445240,2.18664417,2687.4,2687.3,3.69597769]
[1724712445744,1.70000735,2687.4,2687.3,3.69597769]
[1724712445939,0.97330735,2687.4,2687.3,5.03597769]
[1724712446141,0.97330735,2687.5,2687.4,0.37199]
[1724712446345,0.97330735,2687.5,2687.4,3.69581449]
[1724712446650,0.97330735,2687.5,2687.4,4.05411449]
[1724712447143,0.97330735,2687.5,2687.4,2.59083233]
[1724712447750,0.97330735,2687.6,2687.5,0.37198]
[1724712448051,5.03970417,2687.7,2687.5,5.41328039]
[1724712448252,0.9731858,2687.6,2687.5,3.55273806]
[1724712448550,0.9731858,2687.6,2687.5,5.413102]
[1724712448754,1.3451458,2687.6,2687.5,5.413102]
[1724712448949,5.03970417,2687.7,2687.5,5.413102]
[1724712449153,5.03970417,2687.7,2687.6,0.97549304]
[1724712451551,0.97320947,2687.7,2687.6,6.52405806]
[1724712451848,6.52115364,2688.2,2688.1,0.37189]
[1724712452044,0.97590065,2688.4,2688.2,0.37188]
[1724712452240,1.347426,2688.4,2688.3,2.69562239]
[1724712452444,1.347426,2688.4,2688.3,1.35562239]
[1724712452646,1.347426,2688.4,2688.3,0.3812]
[1724712453356,0.37454118,2688.4,2688.3,0.3812]
[1724712454556,0.00269118,2688.4,2688.3,0.75307]
[1724712461147,0.00269118,2688.4,2688.3,0.37187]
[1724712461347,0.35669118,2688.4,2688.3,0.37187]
[1724712461855,0.72854118,2688.4,2688.2,0.384]
[1724712462050,0.72854118,2688.4,2688.2,0.75587]
[1724712462353,1.10897,2688.3,2688.2,0.384]
[1724712462554,0.37194,2687.8,2687.7,1.34637239]
[1724712462850,0.37194,2687.8,2687.7,0.37195]
[1724712463242,0.37193,2687.9,2687.6,1.41221768]
[1724712463446,0.3706,2687.8,2687.7,0.37194]
[1724712463641,0.74255,2687.8,2687.6,0.37196]
[1724712463855,1.47015,2687.8,2687.6,0.37196]
[1724712465549,1.0982,2687.8,2687.7,0.37195]
[1724712466051,3.2078,2688.3,2687.5,1.73202239]
[1724712466052,3.2078,2688.3,2688.0,0.3719]
[1724712466352,1.47639,2688.2,2688.0,0.3719]
[1724712466758,5.19639,2688.2,2688.0,0.3719]
[1724712467152,1.47639,2688.2,2688.0,0.3719]
[1724712468351,0.37189,2688.1,2688.0,0.3719]
[1724712468546,0.37189,2688.1,2687.7,3.21]
[1724712468547,0.37189,2688.1,2687.9,0.37191]
[1724712469353,1.1045,2688.2,2687.5,2.66195239]
[1724712469663,0.37192,2688.0,2687.9,0.37192]
[1724712469854,1.1045,2688.2,2687.9,0.37192]
[1724712469855,0.3719,2688.1,2687.9,0.37192]
[1724712470557,0.37191,2688.0,2687.9,0.37192]
[1724712471653,0.37191,2688.0,2687.8,0.37193]
[1724712472867,0.37191,2688.0,2687.9,0.37192]
[1724712475466,0.37191,2688.0,2687.9,1.71192]
[1724712475864,1.1045,2688.2,2687.9,1.34]
[1724712476060,0.37191,2688.0,2687.9,1.34]
[1724712477866,0.37192,2687.9,2687.8,0.37193]
[1724712478561,1.34,2688.1,2687.7,1.34]
[1724712478562,0.37191,2688.0,2687.9,0.37192]